[Event "Titled Tuesday Blitz November 15 Early 2022"]
[White "Mohamed Anees M"]
[Black "Onslow, Alfie"]
[WhiteFideId "35065815"]
[BlackFideId "436976"]
[WhiteElo "2135"]
[BlackElo "2015"]
[Result "1-0"]
[Round "07"]
[TimeControl "180+1"]
[Date "2022.11.16"]
[WhiteClock "0:00:15"]
[BlackClock "0:00:03"]

1. Nf3 {[%clk 0:03:00]}  c5 {[%clk 0:02:57]} 2. e4 {[%clk 0:03:00]}  Nc6 {[%clk 0:02:57]} 3. d4 {[%clk 0:03:00]}  cxd4 {[%clk 0:02:58]} 4. Nxd4 {[%clk 0:03:01]}  e5 {[%clk 0:02:58]} 5. Nb5 {[%clk 0:03:00]}  d6 {[%clk 0:02:58]} 6. N1c3 {[%clk 0:02:55]}  a6 {[%clk 0:02:58]} 7. Na3 {[%clk 0:02:55]}  b5 {[%clk 0:02:58]} 8. Nd5 {[%clk 0:02:55]}  Nge7 {[%clk 0:02:57]} 9. Bg5 {[%clk 0:02:51]}  h6 {[%clk 0:02:54]} 10. Bxe7 {[%clk 0:02:50]}  Bxe7 {[%clk 0:02:54]} 11. c3 {[%clk 0:02:50]}  O-O {[%clk 0:02:49]} 12. Be2 {[%clk 0:02:50]}  Be6 {[%clk 0:02:35]} 13. Nc2 {[%clk 0:02:50]}  Rc8 {[%clk 0:02:27]} 14. a4 {[%clk 0:02:44]}  bxa4 {[%clk 0:02:22]} 15. Rxa4 {[%clk 0:02:43]}  a5 {[%clk 0:02:20]} 16. O-O {[%clk 0:02:41]}  Rb8 {[%clk 0:02:18]} 17. Qc1 {[%clk 0:02:22]}  Bg5 {[%clk 0:02:16]} 18. Qa1 {[%clk 0:02:21]}  Bxd5 {[%clk 0:02:04]} 19. exd5 {[%clk 0:02:21]}  Ne7 {[%clk 0:02:04]} 20. Bc4 {[%clk 0:02:12]}  Qb6 {[%clk 0:02:00]} 21. b3 {[%clk 0:02:12]}  f5 {[%clk 0:01:23]} 22. Rxa5 {[%clk 0:02:10]}  f4 {[%clk 0:01:24]} 23. Ra6 {[%clk 0:02:09]}  Qc5 {[%clk 0:01:24]} 24. Ra5 {[%clk 0:02:01]}  Qc8 {[%clk 0:01:22]} 25. Ra7 {[%clk 0:01:59]}  f3 {[%clk 0:01:19]} 26. Ne1 {[%clk 0:01:40]}  fxg2 {[%clk 0:01:06]} 27. Nxg2 {[%clk 0:01:41]}  Qg4 {[%clk 0:01:06]} 28. Qd1 {[%clk 0:01:39]}  Qh3 {[%clk 0:00:57]} 29. Qc2 {[%clk 0:01:30]}  Nf5 {[%clk 0:00:53]} 30. Rfa1 {[%clk 0:01:03]}  Nh4 {[%clk 0:00:39]} 31. Nxh4 {[%clk 0:01:01]}  Bxh4 {[%clk 0:00:40]} 32. Qg6 {[%clk 0:00:52]}  Bxf2+ {[%clk 0:00:39]} 33. Kh1 {[%clk 0:00:52]}  Qf3+ {[%clk 0:00:35]} 34. Qg2 {[%clk 0:00:52]}  Qxg2+ {[%clk 0:00:34]} 35. Kxg2 {[%clk 0:00:53]}  Bxa7 {[%clk 0:00:34]} 36. Rxa7 {[%clk 0:00:54]}  Rb6 {[%clk 0:00:27]} 37. Rd7 {[%clk 0:00:51]}  Rf7 {[%clk 0:00:21]} 38. Rd8+ {[%clk 0:00:51]}  Kh7 {[%clk 0:00:21]} 39. h4 {[%clk 0:00:51]}  g6 {[%clk 0:00:21]} 40. Re8 {[%clk 0:00:47]}  Kg7 {[%clk 0:00:20]} 41. Re6 {[%clk 0:00:47]}  Rf6 {[%clk 0:00:13]} 42. Re7+ {[%clk 0:00:47]}  Rf7 {[%clk 0:00:14]} 43. Re6 {[%clk 0:00:47]}  Rf4 {[%clk 0:00:10]} 44. Kg3 {[%clk 0:00:47]}  g5 {[%clk 0:00:05]} 45. h5 {[%clk 0:00:41]}  Rh4 {[%clk 0:00:04]} 46. Rg6+ {[%clk 0:00:37]}  Kh7 {[%clk 0:00:04]} 47. Bd3 {[%clk 0:00:34]}  Rxb3 {[%clk 0:00:02]} 48. Rxd6+ {[%clk 0:00:19]}  Kh8 {[%clk 0:00:03]} 49. Rxh6+ {[%clk 0:00:17]}  Kg7 {[%clk 0:00:02]} 50. Rg6+ {[%clk 0:00:17]}  Kf7 {[%clk 0:00:02]} 51. Rxg5 {[%clk 0:00:18]}  Rf4 {[%clk 0:00:03]} 52. Rxe5 {[%clk 0:00:17]}  Rf6 {[%clk 0:00:03]} 53. Bg6+ {[%clk 0:00:16]}  Kg7 {[%clk 0:00:03]} 54. Re3 {[%clk 0:00:17]}  Kh6 {[%clk 0:00:03]} 55. Rd3 {[%clk 0:00:15]}  Rd6 {[%clk 0:00:02]} 56. Kf4 {[%clk 0:00:15]}  Kg7 {[%clk 0:00:02]} 57. Ke5 {[%clk 0:00:15]}  Rd8 {[%clk 0:00:03]} 58. d6 {[%clk 0:00:16]}  Rb5+ {[%clk 0:00:03]} 59. Ke6 {[%clk 0:00:16]}  Rg5 {[%clk 0:00:03]} 60. Ke7 {[%clk 0:00:16]}  Ra8 {[%clk 0:00:03]} 61. d7 {[%clk 0:00:16]}  Re5+ {[%clk 0:00:03]} 62. Kd6 {[%clk 0:00:17]}  Re1 {[%clk 0:00:02]} 63. c4 {[%clk 0:00:16]}  Rc1 {[%clk 0:00:02]} 64. c5 {[%clk 0:00:16]}  Ra7 {[%clk 0:00:02]} 65. c6 {[%clk 0:00:16]}  Ra8 {[%clk 0:00:02]} 66. Be4 {[%clk 0:00:15]}  Re1 {[%clk 0:00:02]} 67. Bd5 {[%clk 0:00:15]}  Ree8 {[%clk 0:00:02]} 68. dxe8=Q {[%clk 0:00:15]}  Rxe8 {[%clk 0:00:02]} 69. c7 {[%clk 0:00:15]}  Re3 {[%clk 0:00:03]} 70. Rxe3 {[%clk 0:00:15]} 1-0


[Site "https://www.chess.com"]

[Event "Titled Tuesday Blitz November 15 Early 2022"]
[White "Mouhamad, Joachim"]
[Black "Matinian, Nikita"]
[WhiteFideId "656410"]
[BlackFideId "24129100"]
[WhiteElo "2164"]
[BlackElo "2422"]
[Result "0-1"]
[Round "07"]
[TimeControl "180+1"]
[Date "2022.11.16"]
[WhiteClock "0:00:49"]
[BlackClock "0:01:29"]

1. e4 {[%clk 0:03:00]}  c5 {[%clk 0:02:59]} 2. Nf3 {[%clk 0:02:57]}  d6 {[%clk 0:03:00]} 3. d4 {[%clk 0:02:57]}  cxd4 {[%clk 0:03:00]} 4. Nxd4 {[%clk 0:02:58]}  Nf6 {[%clk 0:03:01]} 5. Nc3 {[%clk 0:02:59]}  g6 {[%clk 0:03:01]} 6. f3 {[%clk 0:02:58]}  Bg7 {[%clk 0:03:01]} 7. Be3 {[%clk 0:02:58]}  Nc6 {[%clk 0:03:02]} 8. Qd2 {[%clk 0:02:59]}  Bd7 {[%clk 0:03:02]} 9. O-O-O {[%clk 0:02:57]}  h5 {[%clk 0:03:01]} 10. Kb1 {[%clk 0:02:51]}  Rc8 {[%clk 0:03:00]} 11. Nd5 {[%clk 0:02:49]}  a6 {[%clk 0:02:56]} 12. g3 {[%clk 0:02:43]}  b5 {[%clk 0:02:54]} 13. Rg1 {[%clk 0:02:43]}  Ne5 {[%clk 0:02:53]} 14. h3 {[%clk 0:02:40]}  Nc4 {[%clk 0:02:46]} 15. Bxc4 {[%clk 0:02:40]}  Rxc4 {[%clk 0:02:47]} 16. g4 {[%clk 0:02:36]}  hxg4 {[%clk 0:02:46]} 17. hxg4 {[%clk 0:02:37]}  Nxd5 {[%clk 0:02:35]} 18. exd5 {[%clk 0:02:37]}  Qa8 {[%clk 0:02:36]} 19. Nb3 {[%clk 0:02:10]}  b4 {[%clk 0:02:15]} 20. Na5 {[%clk 0:01:56]}  Rc8 {[%clk 0:02:14]} 21. Bd4 {[%clk 0:01:54]}  f6 {[%clk 0:02:02]} 22. g5 {[%clk 0:01:30]}  Qxd5 {[%clk 0:01:57]} 23. gxf6 {[%clk 0:01:28]}  Bxf6 {[%clk 0:01:56]} 24. Bxf6 {[%clk 0:01:25]}  Qxd2 {[%clk 0:01:55]} 25. Rxd2 {[%clk 0:01:26]}  exf6 {[%clk 0:01:56]} 26. Nb7 {[%clk 0:01:21]}  Rc6 {[%clk 0:01:37]} 27. Nxd6+ {[%clk 0:01:20]}  Kf8 {[%clk 0:01:37]} 28. Ne4 {[%clk 0:01:17]}  Bf5 {[%clk 0:01:34]} 29. Rd6 {[%clk 0:00:50]}  Bxe4 {[%clk 0:01:29]} 30. Rd8+ {[%clk 0:00:50]}  Kg7 {[%clk 0:01:29]} 31. Rxh8 {[%clk 0:00:49]}  Bxc2+ {[%clk 0:01:29]} 0-1


[Site "https://www.chess.com"]

[Event "Titled Tuesday Blitz November 15 Early 2022"]
[White "Ovchinnikov, Vsevolod"]
[Black "Tarasova, Viktoriya"]
[WhiteFideId "24176842"]
[BlackFideId "4175840"]
[WhiteElo "2376"]
[BlackElo "2182"]
[Result "1-0"]
[Round "07"]
[TimeControl "180+1"]
[Date "2022.11.16"]
[WhiteClock "0:00:11"]
[BlackClock "0:00:02"]

1. d4 {[%clk 0:02:57]}  Nf6 {[%clk 0:02:58]} 2. c4 {[%clk 0:02:57]}  e6 {[%clk 0:02:58]} 3. g3 {[%clk 0:02:58]}  d5 {[%clk 0:02:57]} 4. Bg2 {[%clk 0:02:58]}  Bb4+ {[%clk 0:02:55]} 5. Bd2 {[%clk 0:02:58]}  Be7 {[%clk 0:02:55]} 6. Nf3 {[%clk 0:02:58]}  O-O {[%clk 0:02:55]} 7. Qc2 {[%clk 0:02:59]}  c6 {[%clk 0:02:55]} 8. O-O {[%clk 0:02:59]}  Nbd7 {[%clk 0:02:56]} 9. Bf4 {[%clk 0:02:53]}  b6 {[%clk 0:02:55]} 10. Nbd2 {[%clk 0:02:53]}  Nh5 {[%clk 0:02:53]} 11. Be3 {[%clk 0:02:54]}  Bb7 {[%clk 0:02:50]} 12. Rac1 {[%clk 0:02:50]}  a5 {[%clk 0:02:48]} 13. Rfd1 {[%clk 0:02:50]}  Rc8 {[%clk 0:02:41]} 14. h3 {[%clk 0:02:25]}  Nhf6 {[%clk 0:02:34]} 15. Qb1 {[%clk 0:01:58]}  c5 {[%clk 0:02:20]} 16. Ne5 {[%clk 0:01:54]}  Qc7 {[%clk 0:02:14]} 17. Nxd7 {[%clk 0:01:22]}  Qxd7 {[%clk 0:02:07]} 18. dxc5 {[%clk 0:01:22]}  bxc5 {[%clk 0:02:01]} 19. cxd5 {[%clk 0:01:18]}  exd5 {[%clk 0:02:00]} 20. Bg5 {[%clk 0:01:15]}  Qb5 {[%clk 0:01:54]} 21. e3 {[%clk 0:01:07]}  h6 {[%clk 0:01:49]} 22. Bxf6 {[%clk 0:01:06]}  Bxf6 {[%clk 0:01:49]} 23. b3 {[%clk 0:01:05]}  Rfd8 {[%clk 0:01:47]} 24. Qf5 {[%clk 0:00:39]}  Qb6 {[%clk 0:01:41]} 25. Nf1 {[%clk 0:00:31]}  Qe6 {[%clk 0:01:39]} 26. Qxe6 {[%clk 0:00:23]}  fxe6 {[%clk 0:01:37]} 27. Rc2 {[%clk 0:00:23]}  Kf7 {[%clk 0:01:27]} 28. Nd2 {[%clk 0:00:22]}  Ba6 {[%clk 0:01:19]} 29. Rdc1 {[%clk 0:00:23]}  Be7 {[%clk 0:01:13]} 30. Bf1 {[%clk 0:00:23]}  Bb7 {[%clk 0:01:10]} 31. Nf3 {[%clk 0:00:23]}  Bd6 {[%clk 0:01:07]} 32. Ne1 {[%clk 0:00:22]}  Rc7 {[%clk 0:01:02]} 33. Nd3 {[%clk 0:00:19]}  Rdc8 {[%clk 0:01:02]} 34. Nb2 {[%clk 0:00:20]}  e5 {[%clk 0:00:48]} 35. Be2 {[%clk 0:00:20]}  g6 {[%clk 0:00:25]} 36. Bg4 {[%clk 0:00:18]}  Rb8 {[%clk 0:00:20]} 37. h4 {[%clk 0:00:18]}  h5 {[%clk 0:00:20]} 38. Bh3 {[%clk 0:00:18]}  Bc8 {[%clk 0:00:21]} 39. Bxc8 {[%clk 0:00:17]}  Rbxc8 {[%clk 0:00:21]} 40. Kf1 {[%clk 0:00:18]}  Ke6 {[%clk 0:00:21]} 41. Ke2 {[%clk 0:00:18]}  e4 {[%clk 0:00:19]} 42. Rd1 {[%clk 0:00:18]}  Be5 {[%clk 0:00:18]} 43. Na4 {[%clk 0:00:15]}  Rc6 {[%clk 0:00:15]} 44. Rcd2 {[%clk 0:00:15]}  Rd8 {[%clk 0:00:15]} 45. Rc2 {[%clk 0:00:15]}  Rdc8 {[%clk 0:00:15]} 46. Rcd2 {[%clk 0:00:15]}  Rd8 {[%clk 0:00:15]} 47. Rc1 {[%clk 0:00:16]}  Rdc8 {[%clk 0:00:13]} 48. Rdc2 {[%clk 0:00:16]}  Bd6 {[%clk 0:00:13]} 49. Nc3 {[%clk 0:00:16]}  Be5 {[%clk 0:00:13]} 50. Rd2 {[%clk 0:00:15]}  Rd8 {[%clk 0:00:11]} 51. Na4 {[%clk 0:00:15]}  Bd6 {[%clk 0:00:09]} 52. Rcd1 {[%clk 0:00:14]}  Be7 {[%clk 0:00:09]} 53. Rc2 {[%clk 0:00:13]}  Rdc8 {[%clk 0:00:09]} 54. Rdc1 {[%clk 0:00:13]}  R8c7 {[%clk 0:00:08]} 55. Ke1 {[%clk 0:00:13]}  Rc8 {[%clk 0:00:09]} 56. Kf1 {[%clk 0:00:13]}  R8c7 {[%clk 0:00:09]} 57. Ke2 {[%clk 0:00:13]}  Rc8 {[%clk 0:00:09]} 58. Nc3 {[%clk 0:00:13]}  R8c7 {[%clk 0:00:09]} 59. Rd2 {[%clk 0:00:13]}  Rd7 {[%clk 0:00:09]} 60. Rcd1 {[%clk 0:00:14]}  Rcd6 {[%clk 0:00:10]} 61. Nb5 {[%clk 0:00:13]}  Rb6 {[%clk 0:00:09]} 62. Nc3 {[%clk 0:00:14]}  Rbd6 {[%clk 0:00:09]} 63. Na4 {[%clk 0:00:14]}  Rc6 {[%clk 0:00:09]} 64. Kf1 {[%clk 0:00:13]}  Rd8 {[%clk 0:00:09]} 65. Kg1 {[%clk 0:00:13]}  Rd7 {[%clk 0:00:09]} 66. Nc3 {[%clk 0:00:12]}  Rcd6 {[%clk 0:00:09]} 67. Kf1 {[%clk 0:00:13]}  Rd8 {[%clk 0:00:09]} 68. Ne2 {[%clk 0:00:13]}  Ke5 {[%clk 0:00:06]} 69. Kg2 {[%clk 0:00:12]}  Bf6 {[%clk 0:00:04]} 70. Rc2 {[%clk 0:00:12]}  Rc6 {[%clk 0:00:03]} 71. Nf4 {[%clk 0:00:12]}  d4 {[%clk 0:00:03]} 72. exd4+ {[%clk 0:00:12]}  Rxd4 {[%clk 0:00:03]} 73. Re1 {[%clk 0:00:13]}  Kf5 {[%clk 0:00:02]} 74. Ne2 {[%clk 0:00:12]}  Rd5 {[%clk 0:00:01]} 75. Rec1 {[%clk 0:00:12]}  Be7 {[%clk 0:00:01]} 76. Nf4 {[%clk 0:00:12]}  Re5 {[%clk 0:00:01]} 77. Rd1 {[%clk 0:00:11]}  e3 {[%clk 0:00:01]} 78. fxe3 {[%clk 0:00:11]}  Rxe3 {[%clk 0:00:02]} 79. Rf2 {[%clk 0:00:11]} 1-0


[Site "https://www.chess.com"]

[Event "Titled Tuesday Blitz November 15 Early 2022"]
[White "Ozen, Bahadir"]
[Black "Firouzja, Alireza"]
[WhiteFideId "6337058"]
[BlackFideId "12573981"]
[WhiteElo "2503"]
[BlackElo "2903"]
[Result "0-1"]
[Round "07"]
[TimeControl "180+1"]
[Date "2022.11.15"]
[WhiteClock "0:00:14"]
[BlackClock "0:01:50"]

1. g3 {[%clk 0:03:00]}  d5 {[%clk 0:02:59]} 2. Nf3 {[%clk 0:03:01]}  Nf6 {[%clk 0:02:59]} 3. Bg2 {[%clk 0:03:01]}  g6 {[%clk 0:02:59]} 4. O-O {[%clk 0:03:01]}  b5 {[%clk 0:02:59]} 5. b4 {[%clk 0:02:55]}  a5 {[%clk 0:02:58]} 6. bxa5 {[%clk 0:02:54]}  Rxa5 {[%clk 0:02:58]} 7. Bb2 {[%clk 0:02:53]}  Bg7 {[%clk 0:02:58]} 8. d3 {[%clk 0:02:47]}  O-O {[%clk 0:02:58]} 9. Nbd2 {[%clk 0:02:47]}  c5 {[%clk 0:02:58]} 10. Nb3 {[%clk 0:02:46]}  Ra8 {[%clk 0:02:54]} 11. Nxc5 {[%clk 0:02:46]}  Qd6 {[%clk 0:02:54]} 12. Nb3 {[%clk 0:02:44]}  Nc6 {[%clk 0:02:53]} 13. Nbd4 {[%clk 0:02:21]}  Na7 {[%clk 0:02:53]} 14. a4 {[%clk 0:02:20]}  bxa4 {[%clk 0:02:52]} 15. Rxa4 {[%clk 0:02:19]}  Bd7 {[%clk 0:02:53]} 16. Ra1 {[%clk 0:02:14]}  e5 {[%clk 0:02:51]} 17. Ba3 {[%clk 0:02:14]}  Qc7 {[%clk 0:02:51]} 18. Bxf8 {[%clk 0:02:14]}  Rxf8 {[%clk 0:02:52]} 19. Nb3 {[%clk 0:02:09]}  Nb5 {[%clk 0:02:52]} 20. c4 {[%clk 0:02:06]}  dxc4 {[%clk 0:02:44]} 21. dxc4 {[%clk 0:02:05]}  Nc3 {[%clk 0:02:45]} 22. Qc2 {[%clk 0:01:54]}  Qxc4 {[%clk 0:02:44]} 23. Kh1 {[%clk 0:01:52]}  Bf5 {[%clk 0:02:42]} 24. Nbd2 {[%clk 0:01:47]}  Qc7 {[%clk 0:02:34]} 25. Qc1 {[%clk 0:01:28]}  Rc8 {[%clk 0:02:35]} 26. e4 {[%clk 0:01:11]}  Bd7 {[%clk 0:02:09]} 27. Ra3 {[%clk 0:01:10]}  Bb5 {[%clk 0:02:07]} 28. Rxc3 {[%clk 0:01:04]}  Qxc3 {[%clk 0:02:06]} 29. Qxc3 {[%clk 0:01:05]}  Rxc3 {[%clk 0:02:06]} 30. Rb1 {[%clk 0:01:05]}  Bd3 {[%clk 0:02:06]} 31. Re1 {[%clk 0:01:02]}  Ng4 {[%clk 0:01:58]} 32. Kg1 {[%clk 0:01:02]}  Bf8 {[%clk 0:01:58]} 33. h3 {[%clk 0:01:02]}  Nxf2 {[%clk 0:01:58]} 34. Nxe5 {[%clk 0:00:53]}  Bc5 {[%clk 0:01:59]} 35. Kh2 {[%clk 0:00:54]}  Rc2 {[%clk 0:01:54]} 36. Nef3 {[%clk 0:00:35]}  Bb4 {[%clk 0:01:52]} 37. Kg1 {[%clk 0:00:16]}  Bxd2 {[%clk 0:01:51]} 38. Nxd2 {[%clk 0:00:16]}  Rxd2 {[%clk 0:01:52]} 39. e5 {[%clk 0:00:15]}  Bc4 {[%clk 0:01:50]} 40. Rc1 {[%clk 0:00:14]}  Be6 {[%clk 0:01:50]} 41. g4 {[%clk 0:00:14]}  Nd3 {[%clk 0:01:50]} 0-1


[Site "https://www.chess.com"]

[Event "Titled Tuesday Blitz November 15 Early 2022"]
[White "Pakleza, Zbigniew"]
[Black "Shimanov, Aleksandr"]
[WhiteFideId "1119290"]
[BlackFideId "4198603"]
[WhiteElo "2411"]
[BlackElo "2605"]
[Result "0-1"]
[Round "07"]
[TimeControl "180+1"]
[Date "2022.11.15"]
[WhiteClock "0:00:05"]
[BlackClock "0:00:25"]

1. d4 {[%clk 0:03:00]}  g6 {[%clk 0:03:00]} 2. Nf3 {[%clk 0:03:01]}  Bg7 {[%clk 0:03:00]} 3. Bf4 {[%clk 0:03:02]}  d6 {[%clk 0:03:01]} 4. e3 {[%clk 0:03:02]}  Nd7 {[%clk 0:03:02]} 5. h3 {[%clk 0:03:03]}  e5 {[%clk 0:03:02]} 6. Bh2 {[%clk 0:03:04]}  Ne7 {[%clk 0:02:57]} 7. Be2 {[%clk 0:03:03]}  O-O {[%clk 0:02:57]} 8. O-O {[%clk 0:03:04]}  h6 {[%clk 0:02:50]} 9. c4 {[%clk 0:03:00]}  Nf5 {[%clk 0:02:43]} 10. Nc3 {[%clk 0:02:59]}  exd4 {[%clk 0:02:42]} 11. exd4 {[%clk 0:02:59]}  Re8 {[%clk 0:02:42]} 12. Re1 {[%clk 0:02:58]}  Nf6 {[%clk 0:02:40]} 13. Bd3 {[%clk 0:02:37]}  Rxe1+ {[%clk 0:02:37]} 14. Qxe1 {[%clk 0:02:38]}  Nh7 {[%clk 0:02:37]} 15. d5 {[%clk 0:02:19]}  Bd7 {[%clk 0:02:32]} 16. Qd2 {[%clk 0:02:11]}  Nh4 {[%clk 0:02:24]} 17. Nxh4 {[%clk 0:02:02]}  Qxh4 {[%clk 0:02:25]} 18. Bg3 {[%clk 0:02:03]}  Qf6 {[%clk 0:02:20]} 19. Re1 {[%clk 0:01:58]}  a5 {[%clk 0:02:09]} 20. Bf4 {[%clk 0:01:34]}  Ng5 {[%clk 0:01:49]} 21. h4 {[%clk 0:01:06]}  Nh7 {[%clk 0:01:49]} 22. Bxh6 {[%clk 0:01:00]}  Qxh4 {[%clk 0:01:49]} 23. Bxg7 {[%clk 0:00:54]}  Kxg7 {[%clk 0:01:50]} 24. Ne4 {[%clk 0:00:52]}  Nf6 {[%clk 0:01:44]} 25. g3 {[%clk 0:00:33]}  Nxe4 {[%clk 0:01:40]} 26. Rxe4 {[%clk 0:00:33]}  Qf6 {[%clk 0:01:35]} 27. Rh4 {[%clk 0:00:32]}  Kg8 {[%clk 0:00:58]} 28. Qh6 {[%clk 0:00:25]}  Qg7 {[%clk 0:00:55]} 29. Qxg7+ {[%clk 0:00:18]}  Kxg7 {[%clk 0:00:56]} 30. b3 {[%clk 0:00:12]}  a4 {[%clk 0:00:55]} 31. b4 {[%clk 0:00:12]}  b6 {[%clk 0:00:47]} 32. a3 {[%clk 0:00:10]}  Re8 {[%clk 0:00:47]} 33. Re4 {[%clk 0:00:08]}  Rxe4 {[%clk 0:00:38]} 34. Bxe4 {[%clk 0:00:09]}  Kf6 {[%clk 0:00:39]} 35. f4 {[%clk 0:00:09]}  Bf5 {[%clk 0:00:40]} 36. Bf3 {[%clk 0:00:02]}  Bd3 {[%clk 0:00:40]} 37. c5 {[%clk 0:00:02]}  dxc5 {[%clk 0:00:39]} 38. bxc5 {[%clk 0:00:03]}  bxc5 {[%clk 0:00:40]} 39. Kf2 {[%clk 0:00:04]}  Ke7 {[%clk 0:00:40]} 40. Ke3 {[%clk 0:00:04]}  Bc4 {[%clk 0:00:39]} 41. Kd2 {[%clk 0:00:04]}  Kd6 {[%clk 0:00:38]} 42. Kc3 {[%clk 0:00:04]}  Bxd5 {[%clk 0:00:39]} 43. Bd1 {[%clk 0:00:04]}  Bc6 {[%clk 0:00:39]} 44. Bc2 {[%clk 0:00:02]}  Be8 {[%clk 0:00:39]} 45. g4 {[%clk 0:00:02]}  Kd5 {[%clk 0:00:39]} 46. g5 {[%clk 0:00:02]}  Bd7 {[%clk 0:00:37]} 47. Bd3 {[%clk 0:00:03]}  Be8 {[%clk 0:00:33]} 48. Bc2 {[%clk 0:00:03]}  c4 {[%clk 0:00:33]} 49. Bb1 {[%clk 0:00:03]}  Bd7 {[%clk 0:00:32]} 50. Bc2 {[%clk 0:00:04]}  Kc5 {[%clk 0:00:27]} 51. Bb1 {[%clk 0:00:04]}  Bf5 {[%clk 0:00:25]} 52. Ba2 {[%clk 0:00:04]}  Bd3 {[%clk 0:00:25]} 53. Kd2 {[%clk 0:00:05]}  Kd4 {[%clk 0:00:25]} 54. Bxc4 {[%clk 0:00:05]}  Bxc4 {[%clk 0:00:25]} 0-1


[Site "https://www.chess.com"]

[Event "Titled Tuesday Blitz November 15 Early 2022"]
[White "Papayan, Oleg"]
[Black "Narayanan, Srinath"]
[WhiteFideId "4193911"]
[BlackFideId "5018420"]
[WhiteElo "2153"]
[BlackElo "2459"]
[Result "0-1"]
[Round "07"]
[TimeControl "180+1"]
[Date "2022.11.16"]
[WhiteClock "0:00:03"]
[BlackClock "0:00:09"]

1. e4 {[%clk 0:03:00]}  c5 {[%clk 0:02:56]} 2. Nf3 {[%clk 0:02:57]}  d6 {[%clk 0:02:56]} 3. Bb5+ {[%clk 0:02:57]}  Nd7 {[%clk 0:02:55]} 4. O-O {[%clk 0:02:56]}  a6 {[%clk 0:02:53]} 5. Bxd7+ {[%clk 0:02:54]}  Bxd7 {[%clk 0:02:54]} 6. c3 {[%clk 0:02:54]}  Nf6 {[%clk 0:02:53]} 7. Re1 {[%clk 0:02:53]}  g6 {[%clk 0:02:53]} 8. d4 {[%clk 0:02:53]}  Bg7 {[%clk 0:02:54]} 9. e5 {[%clk 0:02:52]}  dxe5 {[%clk 0:02:46]} 10. dxe5 {[%clk 0:02:52]}  Nh5 {[%clk 0:02:44]} 11. Nbd2 {[%clk 0:02:31]}  O-O {[%clk 0:02:38]} 12. Ne4 {[%clk 0:02:25]}  Rc8 {[%clk 0:02:33]} 13. Bg5 {[%clk 0:02:21]}  Bg4 {[%clk 0:02:26]} 14. Qxd8 {[%clk 0:02:19]}  Rfxd8 {[%clk 0:02:27]} 15. Bxe7 {[%clk 0:02:18]}  Rd7 {[%clk 0:02:28]} 16. Nf6+ {[%clk 0:02:10]}  Bxf6 {[%clk 0:02:11]} 17. exf6 {[%clk 0:02:11]}  Bxf3 {[%clk 0:02:11]} 18. gxf3 {[%clk 0:02:08]}  Nf4 {[%clk 0:02:11]} 19. Rad1 {[%clk 0:02:03]}  Rd3 {[%clk 0:01:42]} 20. c4 {[%clk 0:01:41]}  g5 {[%clk 0:01:33]} 21. b3 {[%clk 0:01:23]}  Rxf3 {[%clk 0:01:17]} 22. Re5 {[%clk 0:01:16]}  Nh3+ {[%clk 0:01:12]} 23. Kg2 {[%clk 0:01:11]}  g4 {[%clk 0:01:13]} 24. Rd2 {[%clk 0:01:04]}  h5 {[%clk 0:01:11]} 25. Rxc5 {[%clk 0:00:58]}  Rxc5 {[%clk 0:00:49]} 26. Bxc5 {[%clk 0:00:58]}  Rxf6 {[%clk 0:00:50]} 27. Rd8+ {[%clk 0:00:57]}  Kh7 {[%clk 0:00:49]} 28. Be3 {[%clk 0:00:56]}  b5 {[%clk 0:00:47]} 29. cxb5 {[%clk 0:00:50]}  axb5 {[%clk 0:00:47]} 30. Rd5 {[%clk 0:00:50]}  Ra6 {[%clk 0:00:48]} 31. Rxh5+ {[%clk 0:00:35]}  Kg6 {[%clk 0:00:48]} 32. Rxb5 {[%clk 0:00:35]}  Rxa2 {[%clk 0:00:47]} 33. Rb6+ {[%clk 0:00:25]}  f6 {[%clk 0:00:47]} 34. b4 {[%clk 0:00:25]}  Ra1 {[%clk 0:00:24]} 35. Rxf6+ {[%clk 0:00:24]}  Kg7 {[%clk 0:00:23]} 36. f3 {[%clk 0:00:15]}  Ra2+ {[%clk 0:00:18]} 37. Kg3 {[%clk 0:00:16]}  Kxf6 {[%clk 0:00:19]} 38. fxg4 {[%clk 0:00:15]}  Ng5 {[%clk 0:00:19]} 39. h4 {[%clk 0:00:15]}  Ne6 {[%clk 0:00:17]} 40. b5 {[%clk 0:00:13]}  Ke5 {[%clk 0:00:16]} 41. b6 {[%clk 0:00:14]}  Ke4 {[%clk 0:00:11]} 42. Bg1 {[%clk 0:00:10]}  Nf4 {[%clk 0:00:11]} 43. Bf2 {[%clk 0:00:05]}  Ra3+ {[%clk 0:00:09]} 44. Kh2 {[%clk 0:00:05]}  Kf3 {[%clk 0:00:09]} 45. Be1 {[%clk 0:00:01]}  Ra2+ {[%clk 0:00:09]} 46. Kh1 {[%clk 0:00:02]}  Ra1 {[%clk 0:00:08]} 47. b7 {[%clk 0:00:02]}  Rxe1+ {[%clk 0:00:09]} 48. Kh2 {[%clk 0:00:02]}  Re2+ {[%clk 0:00:08]} 49. Kg1 {[%clk 0:00:02]}  Rb2 {[%clk 0:00:09]} 50. Kf1 {[%clk 0:00:03]}  Rb1# {[%clk 0:00:09]} 0-1


[Site "https://www.chess.com"]

[Event "Titled Tuesday Blitz November 15 Early 2022"]
[White "Pein, Jonathan"]
[Black "Ambartsumova, Karina"]
[WhiteFideId "417092"]
[BlackFideId "4166299"]
[WhiteElo "2227"]
[BlackElo "2319"]
[Result "0-1"]
[Round "07"]
[TimeControl "180+1"]
[Date "2022.11.16"]
[WhiteClock "0:00:02"]
[BlackClock "0:00:06"]

1. d4 {[%clk 0:02:39]}  Nf6 {[%clk 0:02:58]} 2. f3 {[%clk 0:02:39]}  d5 {[%clk 0:02:58]} 3. e4 {[%clk 0:02:39]}  dxe4 {[%clk 0:02:52]} 4. Nc3 {[%clk 0:02:38]}  e5 {[%clk 0:02:48]} 5. dxe5 {[%clk 0:02:36]}  Qxd1+ {[%clk 0:02:46]} 6. Kxd1 {[%clk 0:02:37]}  Nfd7 {[%clk 0:02:41]} 7. e6 {[%clk 0:02:23]}  fxe6 {[%clk 0:02:27]} 8. Nxe4 {[%clk 0:02:22]}  Nf6 {[%clk 0:02:18]} 9. Nxf6+ {[%clk 0:02:09]}  gxf6 {[%clk 0:02:17]} 10. Be3 {[%clk 0:02:10]}  Nc6 {[%clk 0:02:09]} 11. c3 {[%clk 0:02:04]}  Bd7 {[%clk 0:02:07]} 12. Kc2 {[%clk 0:02:04]}  O-O-O {[%clk 0:02:06]} 13. Rd1 {[%clk 0:02:04]}  e5 {[%clk 0:02:01]} 14. Bd3 {[%clk 0:01:59]}  Be6 {[%clk 0:02:01]} 15. b3 {[%clk 0:01:49]}  Be7 {[%clk 0:01:40]} 16. Ne2 {[%clk 0:01:49]}  f5 {[%clk 0:01:23]} 17. Bb5 {[%clk 0:01:43]}  f4 {[%clk 0:01:05]} 18. Bxc6 {[%clk 0:01:38]}  bxc6 {[%clk 0:00:54]} 19. Bf2 {[%clk 0:01:32]}  Kb7 {[%clk 0:00:51]} 20. c4 {[%clk 0:01:30]}  Bf5+ {[%clk 0:00:48]} 21. Kb2 {[%clk 0:01:27]}  Rhg8 {[%clk 0:00:42]} 22. g4 {[%clk 0:01:27]}  Bd3 {[%clk 0:00:34]} 23. Nc3 {[%clk 0:01:25]}  Bf6 {[%clk 0:00:28]} 24. Rhe1 {[%clk 0:01:22]}  e4 {[%clk 0:00:26]} 25. fxe4 {[%clk 0:01:20]}  Rxg4 {[%clk 0:00:26]} 26. e5 {[%clk 0:01:19]}  Be7 {[%clk 0:00:27]} 27. Rd2 {[%clk 0:01:07]}  Rg2 {[%clk 0:00:26]} 28. Red1 {[%clk 0:01:05]}  Rxh2 {[%clk 0:00:21]} 29. Na4 {[%clk 0:00:53]}  Bf5 {[%clk 0:00:20]} 30. Rxd8 {[%clk 0:00:42]}  Bxd8 {[%clk 0:00:21]} 31. Rxd8 {[%clk 0:00:42]}  Rxf2+ {[%clk 0:00:21]} 32. Kc3 {[%clk 0:00:43]}  c5 {[%clk 0:00:21]} 33. Nxc5+ {[%clk 0:00:42]}  Kc6 {[%clk 0:00:22]} 34. e6 {[%clk 0:00:38]}  Rc2+ {[%clk 0:00:14]} 35. Kb4 {[%clk 0:00:33]}  a5+ {[%clk 0:00:14]} 36. Ka3 {[%clk 0:00:15]}  Kxc5 {[%clk 0:00:12]} 37. e7 {[%clk 0:00:13]}  Bg6 {[%clk 0:00:12]} 38. Rg8 {[%clk 0:00:11]}  Re2 {[%clk 0:00:12]} 39. Rg7 {[%clk 0:00:04]}  f3 {[%clk 0:00:11]} 40. b4+ {[%clk 0:00:02]}  axb4+ {[%clk 0:00:11]} 41. Ka4 {[%clk 0:00:02]}  f2 {[%clk 0:00:06]} 42. e8=Q {[%clk 0:00:02]}  Rxe8 {[%clk 0:00:06]} 43. Rxh7 {[%clk 0:00:02]}  Bxh7 {[%clk 0:00:06]} 0-1


[Site "https://www.chess.com"]